Cogmind - Beta 15 @@@ ROGUE MODE // 2025.09.09 @ 02:48:01 Player: Raisen Result: Self-destructed Performance ------------- Evolutions (1) 500 Regions Visited (3) 600 Robots Destroyed (0) 0 Value Destroyed (0) 0 Prototype IDs (0) 0 Alien Tech Used (0) 0 Bonus (200) 200 TOTAL SCORE: 1300 Bonus ------- Pacifist 200 Cogmind --------- Core Integrity 268/400 Matter 300/300 Energy 100/100 System Corruption 0% Temperature Cool (0) Movement Core (50) Location -9/Mines Parts ------- > --- POWER (2) -------- (None) > --- PROPULSION (3) --- (None) > --- UTILITY (2) ------ Structural Scanner > --- WEAPON (2) ------- (None) > --- INVENTORY (5) ---- Shield Generator Peak State ------------ > --- POWER ------------ Light Ion Engine > --- PROPULSION ------- Flight Unit > --- UTILITY ---------- Structural Scanner > --- WEAPON ----------- Small Laser > --- INVENTORY -------- (None) [Rating: 4] Favorites ----------- Power Light Ion Engine Engine Light Ion Engine Propulsion Flight Unit Flight Unit Flight Unit Utility Structural Scanner Device Structural Scanner Weapon Small Laser Energy Gun Small Laser Build | -11 -10 -9 -9 ------- Run | Yrd Mat Mat Min Slots Evolved 2 | . . 2 . Power 1 | . . 1 . Propulsion 1 | . . 1 . Utility . | . . . . Weapon . | . . . . Parts Attached 4 | 1 1 2 . Power 1 | . . 1 . Engine 1 | . . 1 . Core . | . . . . Reactor . | . . . . Propulsion 1 | . 1 . . Treads . | . . . . Leg . | . . . . Wheel . | . . . . Hover . | . . . . Flight 1 | . 1 . . Utility 1 | . . 1 . Device 1 | . . 1 . Storage . | . . . . Processor . | . . . . Hackware . | . . . . Protection . | . . . . Artifact . | . . . . Weapon 1 | 1 . . . Energy Gun 1 | 1 . . . Energy Cannon . | . . . . Ballistic Gun . | . . . . Ballistic Cannon . | . . . . Launcher . | . . . . Special Weapon . | . . . . Impact Weapon . | . . . . Slashing Weapon . | . . . . Piercing Weapon . | . . . . Special Melee Weapon . | . . . . Unidentified Prototypes . | . . . . Parts Lost 2 | . . 1 1 Power 1 | . . 1 . Propulsion 1 | . . . 1 Utility . | . . . . Weapon . | . . . . Highest Loss Streak 1 | . . 1 1 To Critical Strikes . | . . . . Average Backups . | . . . 1 Power . | . . . . Propulsion . | . . . . Utility . | . . . 1 Weapon . | . . . . Tool/Special . | . . . . Unused Backups 1 | . . . 1 Power . | . . . . Propulsion . | . . . . Utility 1 | . . . 1 Weapon . | . . . . Tool/Special . | . . . . Average Slot Usage (%) 22 | . 17 28 19 Engine 2 | . . 5 . Flight 7 | . 3 11 8 Device 6 | . . 10 11 Energy Gun 6 | . 14 1 . Peak Build Rating 4 | 1 2 4 2 Average Rating 1 | . 1 2 1 On Entrance 1 | . 1 2 2 Naked Turns . | . . . . Heaviest Build 4 | 1 1 4 1 Greatest Support 4 | 3 4 4 4 Greatest Overweight (x) . | . . . . Average Overweight (x) . | . . . . Largest Inventory Capacity 5 | 5 5 5 5 Average Capacity 5 | 5 5 5 5 Most Carried 1 | . . 1 1 Average Carried . | . . . 1 Final Capacity 5 | 5 5 5 5 Final Carried 1 | . . 1 1 Class Distribution -------------------- 100% | Mutant Dominant Class ---------------- Mutant | -10/Materials Mutant | -9/Materials Mutant | -9/Mines Resources | -11 -10 -9 -9 ----------- Run | Yrd Mat Mat Min Matter Collected 235 | 172 . 63 . Remotely . | . . . . Salvage Created . | . . . . Parts . | . . . . Haulers Intercepted . | . . . . Recyclers Shooed . | . . . . Parts Field Recycled . | . . . . Retrieved Matter . | . . . . Parts Self-Destructed . | . . . . Prevented . | . . . . Kills | -11 -10 -9 -9 ------- Run | Yrd Mat Mat Min Combat Hostiles Destroyed . | . . . . Classes Destroyed . | . . . . Best Kill Streak . | . . . . Combat Bots Only . | . . . . Max Kills in Single Turn . | . . . . Gunslinging . | . . . . Exploded . | . . . . Melee . | . . . . Uniques/NPCs Destroyed . | . . . . Combat | -11 -10 -9 -9 -------- Run | Yrd Mat Mat Min Hostile Shots Fired 26 | . 1 12 13 Missed 9 | . . 5 4 Hits 17 | . 1 7 9 Projectile 17 | . 1 7 9 Damage Taken 212 | . 12 93 107 Core 144 | . 12 42 90 Absorbed by Shields . | . . . . Core Remaining (%) 97 | 100 95 . . Volleys Fired . | . . . . Largest . | . . . . Hottest . | . . . . Shots Fired . | . . . . Gun . | . . . . Cannon . | . . . . Launcher . | . . . . Special . | . . . . Kinetic . | . . . . Thermal . | . . . . Explosive . | . . . . Electromagnetic . | . . . . Robot Hit Streak . | . . . . Robot Miss Streak . | . . . . Penetration Max . | . . . . Secondary Targets . | . . . . Shots Hit Robots . | . . . . Core Hits . | . . . . Critical Kills . | . . . . Critical Parts Destroyed . | . . . . Critical Strikes . | . . . . Melee Attacks . | . . . . Impact . | . . . . Slashing . | . . . . Piercing . | . . . . Sneak Attacks . | . . . . Combat Hostiles . | . . . . Follow-up Attacks . | . . . . Damage Inflicted . | . . . . Guns . | . . . . Cannons . | . . . . Explosions . | . . . . Melee . | . . . . Ramming . | . . . . Kinetic . | . . . . Thermal . | . . . . Explosive . | . . . . Electromagnetic . | . . . . Impact . | . . . . Slashing . | . . . . Piercing . | . . . . Highest Corruption . | . . . . Average Corruption . | . . . . Corruption Purged . | . . . . Corruption Blocked . | . . . . Overload Shots . | . . . . Overflow Damage . | . . . . Projectiles . | . . . . Explosions . | . . . . Melee . | . . . . Knockbacks . | . . . . Impact . | . . . . Kinetic . | . . . . Secondary . | . . . . Self-Inflicted Damage . | . . . . Shots . | . . . . Rammed . | . . . . Targets Rammed . | . . . . Kicked . | . . . . Crushed . | . . . . Highest Temperature . | . . . . Average Temperature . | . . . . Received Heat Transfer 36 | . 6 30 . Siege Activations . | . . . . Martial Activations . | . . . . Shielding Activations . | . . . . Robots Disrupted . | . . . . Combat Hostiles . | . . . . Robots Corrupted . | . . . . Combat Hostiles . | . . . . Parts Fried . | . . . . Impact Corruptions . | . . . . Robots Melted . | . . . . Combat Hostiles . | . . . . Parts Melted . | . . . . Heat Transferred . | . . . . Parts Sabotaged . | . . . . Parts Stolen . | . . . . Parts Stripped . | . . . . Power Chain Reactions . | . . . . Alert | -11 -10 -9 -9 ------- Run | Yrd Mat Mat Min Maximum Alert Level . | . . . . Low Security (%) 100 | 100 100 100 100 Level 1 . | . . . . Level 2 . | . . . . Level 3 . | . . . . Level 4 . | . . . . Level 5 . | . . . . High Security . | . . . . Max Security . | . . . . Peak Influence 110 | . . 110 39 Initial 39 | . . . 39 Average 14 | . . 24 29 Influence Increases 170 | . . 170 . Successful Hack 5 | . . 5 . Partial Spotted 60 | . . 60 . Lose Combat Pursuer 105 | . . 105 . Influence Decreases 151 | . . 70 81 Entered New Map 61 | . . . 61 Time Decay 70 | . . 60 10 Lost Part 20 | . . 10 10 Squads Dispatched . | . . . . Investigation . | . . . . Extermination . | . . . . Reinforcement . | . . . . Assault . | . . . . Garrison . | . . . . Intercept . | . . . . Searches Triggered . | . . . . Construction Impeded . | . . . . Haulers Reinforced . | . . . . Active Scanning Responses . | . . . . Cargo Convoy Interrupts . | . . . . Stealth | -11 -10 -9 -9 --------- Run | Yrd Mat Mat Min Distress Signals 2 | . . 2 . Communications Jammed . | . . . . Distress Signals . | . . . . Times Spotted 17 | . 4 10 3 Peak Tracking Total 10 | . 4 10 3 Tactical Retreats 3 | . . 3 . Traps | -11 -10 -9 -9 ------- Run | Yrd Mat Mat Min Traps Triggered 1 | . . . 1 Indirectly . | . . . . Trap Hack Attempts . | . . . . Triggered . | . . . . Disarmed . | . . . . Reprogrammed . | . . . . Reused . | . . . . Traps Extracted . | . . . . Installed . | . . . . Triggered . | . . . . Machines | -11 -10 -9 -9 ---------- Run | Yrd Mat Mat Min Machines Disabled . | . . . . Max in Single Turn . | . . . . Machines Repaired . | . . . . Machines Dismantled . | . . . . Machines Sabotaged . | . . . . Overloaded Fab Kills . | . . . . Hacking | -11 -10 -9 -9 --------- Run | Yrd Mat Mat Min Machines Accessed 5 | . 2 2 1 Terminals 4 | . 2 2 . Fabricators . | . . . . Repair Stations . | . . . . Recycling Units . | . . . . Scanalyzers . | . . . . Garrison Access . | . . . . Total Hacks 11 | . 5 5 1 Successful 7 | . 4 2 1 Failed 4 | . 1 3 . Catastrophic . | . . . . Database Lockouts . | . . . . Manual 7 | . 5 2 . Terminals 10 | . 5 5 . Fabricators . | . . . . Repair Stations . | . . . . Recycling Units . | . . . . Scanalyzers . | . . . . Garrison Access . | . . . . Terminal Hacks 1 | . . . 1 Open Door 1 | . . . 1 Fabricator Hacks . | . . . . Repair Station Hacks . | . . . . Recycling Unit Hacks . | . . . . Scanalyzer . | . . . . Garrison Access Hacks . | . . . . Unauthorized Hacks 6 | . 4 2 . Terminals 6 | . 4 2 . Assimilate 1 | . 1 . . Botnet 4 | . 2 2 . Operators 1 | . 1 . . Fabricators . | . . . . Repair Stations . | . . . . Recycling Units . | . . . . Scanalyzers . | . . . . Garrison Access . | . . . . Data Cores Recovered . | . . . . Used . | . . . . Hacking Detections 3 | . 2 1 . Full Trace Events . | . . . . Feedback Events . | . . . . Feedback Blocked . | . . . . Robot Schematics Acquired . | . . . . Robots Built . | . . . . Authchips . | . . . . Time . | . . . . Total Robot Build Rating . | . . . . Part Schematics Acquired . | . . . . Parts Built . | . . . . Authchips . | . . . . Time . | . . . . Total Part Build Rating . | . . . . Parts Repaired . | . . . . Time . | . . . . Parts Recycled . | . . . . Recycled Matter . | . . . . Retrieved Matter . | . . . . Retrieved Components . | . . . . Parts Scanalyzed . | . . . . Part Schematics Acquired . | . . . . Parts Damaged . | . . . . Bothacking | -11 -10 -9 -9 ------------ Run | Yrd Mat Mat Min Used RIF Installer . | . . . . Robots Hacked . | . . . . Non-combat . | . . . . Combat . | . . . . Robot Hacks Applied . | . . . . Relay Couplers Released . | . . . . Fabnet Peak Effective % . | . . . . Robots Rewired . | . . . . Allies Hacked . | . . . . Hacks Repelled . | . . . . Allies | -11 -10 -9 -9 -------- Run | Yrd Mat Mat Min Total Allies . | . . . . Largest Group . | . . . . Highest-Rated Group . | . . . . Highest-Rated Ally . | . . . . Total Orders . | . . . . Ally Attacks . | . . . . Total Damage . | . . . . Kills . | . . . . Allies Corrupted . | . . . . Allies Melted . | . . . . Intel | -11 -10 -9 -9 ------- Run | Yrd Mat Mat Min Active Infowar (turns) 172 | . . 134 38 Structural 172 | . . 134 38 Robot Analysis Total . | . . . . Derelict Logs Recovered . | . . . . Drone Launches . | . . . . Drone Recoveries . | . . . . Exploration | -11 -10 -9 -9 ------------- Run | Yrd Mat Mat Min Turns Passed 318 | 15 125 140 38 Spaces Moved 703 | 28 257 338 80 Core 260 | 28 202 . 30 Treads . | . . . . Legs . | . . . . Wheels . | . . . . Hover . | . . . . Flight 443 | . 55 338 50 Fastest Speed 40 | 50 40 40 40 Average Speed 43 | 50 47 40 43 Slowest Speed 50 | 50 50 40 50 Overloaded Moves . | . . . . Propulsion Burnouts . | . . . . Robots Hopped 5 | . . 4 1 Potential Cave-ins . | . . . . Cave-ins Triggered . | . . . . Exploration Rate (%) 24 | 3 44 33 18 Regions Visited 3 Branch Regions 1 Pre-discovered Areas . | . . . . Known Exits Taken . | . . . . Unknown Exits Taken 3 | 1 1 1 . Scrap Searched . | . . . . Spaces Dug . | . . . . Terrain Destroyed . | . . . . Melee . | . . . . Projectile . | . . . . AOE . | . . . . Terrain Rammed . | . . . . Walls Destroyed . | . . . . Machines Disabled . | . . . . Actions | -11 -10 -9 -9 --------- Run | Yrd Mat Mat Min Total 703 | 28 257 337 81 Wait 2 | . . . 2 Move 691 | 27 256 330 78 Hop 4 | . . 3 1 Pick Up 1 | . . 1 . Fast Attach 4 | 1 1 2 . Attach . | . . . . Detach . | . . . . Swap . | . . . . Drop 1 | . . 1 . Fire . | . . . . Melee . | . . . . Ram . | . . . . Kick . | . . . . Crush . | . . . . Escape Stasis . | . . . . Rewire . | . . . . Trap . | . . . . Miscellaneous . | . . . . Route ------- -11/Scrapyard -10/Materials (discovered 2 exits: *Mat / [*Min]) -9/Materials -9/Mines History --------- Turn | Location | Event 9 | -11/Scrapyard | Discovered new exit (range 12) 16 | -11/Scrapyard | Entered Materials 22 | -10/Materials | Discovered new exit (range 16) 71 | -10/Materials | Discovered new exit (range 16) 141 | -10/Materials | Entered another Materials area 141 | -9/Materials | Evolved 2 slots: Power x1, Propulsion x1 258 | -9/Materials | Discovered new exit (range 6) 281 | -9/Materials | Entered Mines 307 | -9/Mines | Met a Derelict bent on vengeance 309 | -9/Mines | Build established: Mutant 312 | -9/Mines | Met a Derelict who couldn't figure out how to use a Trap Extractor 319 | -9/Mines | Self-destructed Last Messages --------------- 00258_ EXIT=FOUND 00268_ Acquired 63 matter. LOCATION=UNKNOWN GOAL=ESCAPE Something is scanning the area. 00298_ K-01 Serf collects debris. 00303_ Flight Unit destroyed. 00311_ Connecting with SHOP.Sys... 00311_ Current location identified: Mines >>Open Door Sealed Doors opened. 00312_ QX-764(g): "So I found this thing but I have no idea how to use it. And who the hell trapped this place to begin with?!" 00312_ QX-764(g): "I give up! Here you try, I'm outta here before something nasty happens..." 00312_ Tosses Imp. Trap Extractor to the ground. 00312_ Triggered Explosive Trap. 00312_ An explosion rips through the floor. 00312_ Machine disabled. Map ----- +----------------------------------------------------+ | | | | | | | | | | | | | | | | | | | ????????????????##########???????????????????????? | | ????????????????##" """"##???????????????????????? | | ????????????????##|!]=]]##???????????????????????? | | ????????????????### ! ##???????????????????????? | | ????????????????###! ! ##???????????????????????? | | ???????????????#### ###???????????????????????? | | ???????????????### X ###??????????????????????? | | ???????????????## ####?????????????????????? | | ???????????????## ####????????????????????? | | ???????????????### ######?????????????????? | | ################### ######????????????????? | | ################### ###????????????????? | | ###???????????????? | | ################## #### ####??????????????? | | ######################## ## ??????????????? | | ##????## ##### # ??????????????? | | ##????## #### @ ##??????????????? | | ######## """ """ ### ###??????????????? | | ######## """ """ ### ### ??????????????? | | """ """ ### ##### ???????????????? | | ######## ### #### ????????????????? | | ######## ### ####???????????????????? | | ###???############### ###????????????????????? | | ##################### ##?????????????????????? | | ############??????### ###?????????????????????? | | ##??????#######?????????????????????? | | #######? ##???????####???????????????????????? | | # ########??????????????????????????????????????? | | ######???????????????????????????????????????????? | | #####????????????????????????????????????????????? | | ?????????????????????????????????????????????????? | | ?????????????????????????????????????????????????? | | ?????????????????????????????????????????????????? | | ?????????????????????????????????????????????????? | | ?????????????????????????????????????????????????? | | ?????????????????????????????????????????????????? | | ?????????????????????????????????????????????????? | | ?????????????????????????????????????????????????? | | ?????????????????????????????????????????????????? | | ?????????????????????????????????????????????????? | | ?????????????????????????????????????????????????? | +----------------------------------------------------+ Best States ------------- Heat Dissipation 28 Energy Generation 10 Energy Capacity 125 Matter Stores 300 Matter Capacity 300 Sight Range 16 Terrain Scan Density 10 Evasion (%) 62 Item Schematics ----------------- None Robot Schematics ------------------ None Fabricated ------------ Nothing Repaired ---------- Nothing Alien Tech Used ----------------- None Achievements -------------- None Challenges ------------ None Game ------ Seed KineticNuclearShearcannon Manual? 0 Play Time 00:07:17 Cumulative 12.6 hours Start 2025.09.09 @ 02:41:40 End 2025.09.09 @ 02:48:01 Sessions 1 Manual Loads 0 Difficulty Rogue Special Mode None Game No. 22 Rogue 22 Adventurer 0 Explorer 0 Win Type - Total 0 Types 0/0/0/0/0/0/0/0/0/0 Lore% 9 Gallery% 17 Achievement% 20 Wizard Run 0 Options --------- Layout 1 ASCII 0 Keyboard 0 Movement Mouse Keybinds 0 Fullscreen 2 Font 24/Smallcaps Map View 50x35 Zoom Use 0% Tactical HUD 1 Map Filters NONE Filters NONE Steam 1 RUN: ec6b83f6-495e-4dfb-a6f2-32d6dfd14ea3